fUST/lending_fUST_20260103
["ID","MTS","AMOUNT","RATE_DAILY","PERIOD"]
[400361096,1767436241279,-151.0,0.00016438,2]
[400361097,1767436241289,-151.0,0.00016438,2]
[400361098,1767436241298,-151.0,0.00016438,2]
[400361099,1767436241308,-3000.0,0.00016438,2]
[400361100,1767436241318,-259.79445274,0.00016438,2]
[400361101,1767436241328,-416.0,0.0001644,2]
[400361102,1767436241339,-376.3998898,0.00016441,2]
[400361103,1767436241349,-200.0,0.00016473,2]
[400361104,1767436241358,-387.098932,0.00016578,2]
[400361105,1767436241368,-600.2103909,0.00016578,2]
[400361106,1767436241378,-600.2103909,0.00016578,2]
[400361107,1767436241387,-635.39,0.000168,2]
[400361108,1767436241397,-246.06458157,0.00016877,3]
[400361109,1767436241407,-864.7,0.00016944,2]
[400361110,1767436241418,-3500.0,0.00016986,2]
[400361111,1767436241427,-392.98238702,0.00016989,2]
[400361112,1767436241437,-250.0,0.00017016,2]
[400361113,1767436241447,-635.39,0.000171,2]
[400361114,1767436241456,-635.39,0.000174,2]
[400361115,1767436241466,-864.7,0.00017449,2]
[400361116,1767436241476,-4000.0,0.00017534,2]
[400361117,1767436241486,-1000.0,0.00017618,2]
[400361118,1767436241496,-635.39,0.000177,2]
[400361119,1767436241505,-151.0,0.000178,2]
[400361120,1767436241516,-151.0,0.000178,2]
[400361121,1767436241525,-972.294013,0.000178,2]
[400361122,1767436241535,-972.294013,0.000178,2]
[400361123,1767436241545,-972.294013,0.000178,2]
[400361124,1767436241554,-972.294013,0.000178,2]
[400361125,1767436241565,-151.0,0.000178,2]
[400361126,1767436241575,-151.0,0.000178,2]
[400361127,1767436241585,-151.0,0.000178,2]
[400361128,1767436241595,-151.0,0.000178,2]
[400361129,1767436241604,-214285.72,0.000178,3]
[400361130,1767436241615,-400.0,0.00017842,2]
[400361131,1767436241624,-864.7,0.00017955,2]
[400361132,1767436241634,-194.0,0.00017973,3]
[400361133,1767436241643,-38867.04601382,0.00018,5]
[400361134,1767436242043,217.442454,0.00012877,2]
[400361135,1767436242067,-500.0,0.00012877,2]
[400361136,1767436242077,-500.0,0.00012877,2]
[400361137,1767436242087,-500.0,0.00012877,2]
[400361138,1767436242096,-62215.30523551,0.00018,5]
[400361139,1767436242108,-6582.80019873,0.00018,5]
[400361140,1767436242455,-3e-08,0.00018,5]
[400361145,1767436264688,194.86222408,0.00012878,2]
[400361146,1767436273335,2000.0,0.00028767,120]
[400361147,1767436290007,166.33,0.00011679,2]
[400361148,1767436290495,199.6,0.00012146,2]
[400361149,1767436291008,232.86,0.00012614,2]
[400361150,1767436303419,151.597,0.00012621,2]
[400361151,1767436322184,300.0,0.00012877,2]
[400361152,1767436357291,500.0,0.00012877,2]
[400361153,1767436357324,500.0,0.00012877,2]
[400361154,1767436357370,157.81467285,0.00012877,2]
[400361155,1767436357424,347.15105659,0.00012877,2]
[400361156,1767436357480,500.0,0.00012877,2]
[400361157,1767436361581,153.87,0.00012204,2]
[400361158,1767436362085,179.51,0.00012673,2]
[400361159,1767436367296,500.0,0.00012877,2]
[400361160,1767436367363,500.0,0.00012877,2]
[400361161,1767436367404,500.0,0.00012877,2]
[400361162,1767436367441,500.0,0.00012877,2]
[400361163,1767436367480,200.009,0.00012877,2]
[400361164,1767436367539,500.0,0.00012877,2]
[400361165,1767436381254,500.0,0.00012877,2]
[400361166,1767436381310,500.0,0.00012877,2]
[400361167,1767436381363,500.0,0.00012877,2]
[400361168,1767436381417,500.0,0.00012877,2]
[400361169,1767436381483,500.0,0.00012877,2]
[400361170,1767436381525,310.30090143,0.00012877,2]
[400361173,1767436396248,500.0,0.00012877,2]
[400361174,1767436396295,406.10514505,0.00012877,2]
[400361175,1767436396320,93.89485495,0.00012877,2]
[400361176,1767436396360,500.0,0.00012877,2]
[400361177,1767436408774,181.61,0.00012877,2]
[400361178,1767436408988,294.09370762,0.00012877,2]
[400361179,1767436411792,500.0,0.00012877,2]
[400361180,1767436411861,500.0,0.00012877,2]
[400361181,1767436411963,321.86666314,0.00012877,2]
[400361182,1767436412044,500.0,0.00012877,2]
[400361183,1767436429589,500.0,0.00012877,2]
[400361184,1767436429643,500.0,0.00012877,2]
[400361185,1767436429697,500.0,0.00012877,2]
[400361186,1767436429751,639.71709857,0.00012877,2]
[400361187,1767436431846,165.16,0.00012491,2]
[400361188,1767436445256,500.0,0.00012877,2]
[400361189,1767436445665,500.0,0.00012877,2]
[400361190,1767436446061,500.0,0.00012877,2]
[400361191,1767436446447,410.29190143,0.00012877,2]
[400361192,1767436458282,500.0,0.00012877,2]
[400361193,1767436458313,300.009,0.00012877,2]
[400361194,1767436458377,500.0,0.00012877,2]
[400361195,1767436458409,500.0,0.00012877,2]
[400361196,1767436471787,500.0,0.00012877,2]
[400361197,1767436471857,500.0,0.00012877,2]
[400361198,1767436476299,93.36677429,0.00012877,2]
[400361199,1767436476324,406.63322571,0.00012877,2]
[400361200,1767436481771,500.0,0.00012877,2]
[400361201,1767436494194,500.0,0.00012877,2]
[400361202,1767436497487,500.0,0.00012877,2]
[400361203,1767436497540,500.0,0.00012877,2]
[400361204,1767436501290,300.0,0.00012877,2]
[400361205,1767436502251,165.01,0.00012823,2]
[400361206,1767436516448,500.0,0.00012877,2]
[400361207,1767436516501,500.0,0.00012877,2]
[400361208,1767436516557,599.01933388,0.00012877,2]
[400361209,1767436527399,377.45344286,0.00012877,2]
[400361210,1767436528790,500.0,0.00012877,2]
[400361211,1767436528840,500.0,0.00012877,2]
[400361212,1767436528894,460.29190142,0.00012877,2]
[400361213,1767436546799,500.0,0.00012877,2]
[400361214,1767436546838,500.0,0.00012877,2]
[400361215,1767436546874,500.0,0.00012877,2]
[400361216,1767436564380,500.0,0.00012877,2]
[400361217,1767436564429,500.0,0.00012877,2]
[400361218,1767436564493,446.6537025,0.00012877,2]
[400361219,1767436571878,164.13,0.00012676,2]
[400361220,1767436577142,500.0,0.00012877,2]
[400361221,1767436577188,80.81839363,0.00012877,2]
[400361222,1767436577216,419.18160637,0.00012877,2]
[400361223,1767436577299,500.0,0.00012877,2]
[400361224,1767436583259,377.43344286,0.00012877,2]
[400361225,1767436594932,500.0,0.00012877,2]
[400361226,1767436594994,622.56655714,0.00012877,2]
[400361227,1767436596903,3000.0,0.00010956,2]
[400361228,1767436608180,500.0,0.00012877,2]
[400361229,1767436609437,500.0,0.00012877,2]
[400361230,1767436618838,500.0,0.00012877,2]
[400361231,1767436618880,500.0,0.00012877,2]
[400361232,1767436618913,500.0,0.00012877,2]
[400361233,1767436618946,396.36214381,0.00012877,2]
[400361234,1767436618978,500.0,0.00012877,2]
[400361235,1767436619026,500.0,0.00012877,2]
[400361236,1767436619073,500.0,0.00012877,2]
[400361237,1767436619142,184.46624982,0.00012877,2]
[400361238,1767436619168,315.53375018,0.00012877,2]
[400361239,1767436619200,500.0,0.00012877,2]
[400361240,1767436641931,500.0,0.00012877,2]
[400361241,1767436641963,500.0,0.00012877,2]
[400361242,1767436641998,501.37114379,0.00012877,2]
[400361243,1767436642028,500.0,0.00012877,2]
[400361244,1767436642058,604.50047935,0.00012877,2]
[400361245,1767436642105,500.0,0.00012877,2]
[400361246,1767436642144,500.0,0.00012877,2]
[400361247,1767436642195,500.0,0.00012877,2]
[400361248,1767436664126,3044.0,0.00012111,2]
[400361249,1767436679640,485.24,7.992e-05,2]
[400361250,1767436679950,485.24,7.992e-05,2]
[400361251,1767436702742,531.44,0.000126,2]
[400361252,1767436762839,325.25,0.000126,2]
[400361253,1767436822552,527.31,0.000126,2]
[400361254,1767436883092,329.29,0.000126,2]
[400361255,1767436941105,523.35,0.000126,2]
[400361258,1767437002746,333.17,0.000126,2]
[400361259,1767437027397,153.73579969,0.00028767,120]
[400361260,1767437049278,153.73579968,0.00028767,120]
[400361261,1767437060866,519.55,0.000126,2]
[400361262,1767437077552,174.44234041,0.00028767,120]
[400361264,1767437088053,169.29286,5.957e-05,2]
[400361265,1767437122570,336.9,0.000126,2]
[400361266,1767437142259,336.84,0.00012631,2]
[400361267,1767437181953,515.9,0.000126,2]
[400361273,1767437242650,340.48,0.000126,2]
[400361274,1767437279039,-5892.68217301,0.00012777,2]
[400361275,1767437288473,-10000.01,0.00012777,2]
[400361276,1767437299573,3290.4063742,0.00012627,2]
[400361277,1767437308134,5000.0,0.00012627,2]
[400361278,1767437324969,161.44,0.00010923,2]
[400361279,1767437325457,215.25,0.00011398,2]
[400361280,1767437325952,269.06,0.00011873,2]
[400361281,1767437326441,322.87,0.00012348,2]
[400361282,1767437332103,740.9836258,0.00012627,2]
[400361283,1767437332261,743.39994589,0.00012627,2]
[400361284,1767437356287,163.77131589,0.00012627,2]
[400361287,1767437365435,367.21,0.000126,2]
[400361290,1767437400902,196.88,0.00011227,2]
[400361291,1767437401354,246.1,0.00011695,2]
[400361292,1767437401853,295.32,0.00012163,2]
[400361293,1767437406343,-344.54,0.00012631,2]
[400361294,1767437406373,-599.0,0.00012631,2]
[400361300,1767437421918,-300.0,0.00012776,2]
[400361301,1767437422617,427.34,0.000126,2]
[400361303,1767437427758,-1000.01,0.00012631,2]
[400361304,1767437427791,-500.0,0.00012776,2]
[400361305,1767437427822,-500.0,0.00012776,2]
[400361306,1767437427853,-500.0,0.00012776,2]
[400361307,1767437427999,-500.0,0.00012776,2]
[400361308,1767437428032,-500.0,0.00012776,2]
[400361309,1767437428062,-500.0,0.00012776,2]
[400361310,1767437428093,-500.0,0.00012776,2]
[400361311,1767437428123,-499.99,0.00012776,2]
[400361322,1767437431712,-612.65091569,0.00012776,2]
[400361323,1767437434242,-6959.99873822,0.00012776,2]
[400361332,1767437437888,-34544.77170516,0.00012776,2]
[400361333,1767437437902,-5713.74440716,0.00012776,2]
[400361334,1767437438025,-2168.83423377,0.00012776,2]
[400361335,1767437438036,-0.01,0.00012776,2]
[400361336,1767437438045,-500.0,0.00012776,2]
[400361337,1767437438055,-500.0,0.00012776,2]
[400361338,1767437438065,-500.0,0.00012776,2]
[400361339,1767437438074,-500.0,0.00012776,2]
[400361340,1767437438084,-500.0,0.00012776,2]
[400361341,1767437438094,-500.0,0.00012776,2]
[400361342,1767437438104,-500.0,0.00012776,2]
[400361343,1767437438114,-304.70032443,0.00012776,2]
[400361344,1767437438123,-500.0,0.00012776,2]
[400361345,1767437438133,-500.0,0.00012776,2]
[400361346,1767437438142,-500.0,0.00012776,2]
[400361347,1767437438152,-500.0,0.00012776,2]
[400361348,1767437438162,-621.49964085,0.00012776,2]
[400361349,1767437438171,-500.0,0.00012776,2]
[400361350,1767437438181,-500.0,0.00012776,2]
[400361351,1767437438191,-500.0,0.00012776,2]
[400361352,1767437438200,-500.0,0.00012776,2]
[400361353,1767437438210,-500.0,0.00012776,2]
[400361354,1767437438220,-500.0,0.00012776,2]
[400361355,1767437438229,-707904.75059577,0.00012777,2]
[400361356,1767437438239,-292.78998313,0.00012814,2]
[400361357,1767437438249,-240.00397434,0.00012876,2]
[400361358,1767437438261,-427.34,0.00013,2]
[400361359,1767437438270,-393.76,0.00013098,2]
[400361360,1767437438280,-600.0,0.00013135,2]
[400361361,1767437438290,-500.0,0.00013273,2]
[400361362,1767437438299,-500.0,0.00013273,2]
[400361363,1767437438309,-500.0,0.00013273,2]
[400361364,1767437438319,-427.34,0.000133,2]
[400361365,1767437438328,-442.98,0.00013566,2]
[400361366,1767437438338,-427.34,0.000136,2]
[400361367,1767437438347,-300.0,0.00013673,2]
[400361368,1767437438358,-518.65088153,0.00013698,2]
[400361369,1767437438367,-529.5136224,0.00013698,2]
[400361370,1767437438377,-191.60962152,0.00013698,2]
[400361371,1767437438386,-1730.16,0.00013698,2]
[400361372,1767437438396,-1730.16,0.00013698,2]
[400361373,1767437438406,-1730.16,0.00013698,2]
[400361374,1767437438415,-1730.16,0.00013698,2]
[400361375,1767437438424,-1730.16,0.00013698,2]
[400361376,1767437438433,-1730.16,0.00013698,2]
[400361377,1767437438443,-1730.16,0.00013698,2]
[400361378,1767437438452,-1730.16,0.00013698,2]
[400361379,1767437438461,-1730.16,0.00013698,2]
[400361380,1767437438471,-1730.16,0.00013698,2]
[400361381,1767437438483,-1730.16,0.00013698,2]
[400361382,1767437438493,-1730.16,0.00013698,2]
[400361383,1767437438502,-1730.16,0.00013698,2]
[400361384,1767437438511,-1730.16,0.00013698,2]
[400361385,1767437438522,-1730.16,0.00013698,2]
[400361386,1767437438532,-1730.16,0.00013698,2]
[400361387,1767437438542,-1730.16,0.00013698,2]
[400361388,1767437438552,-1730.16,0.00013698,2]
[400361389,1767437438561,-1730.16,0.00013698,2]
[400361390,1767437438571,-1730.16,0.00013698,2]
[400361391,1767437438580,-1730.16,0.00013698,2]
[400361392,1767437438589,-1730.16,0.00013698,2]
[400361393,1767437438599,-1730.16,0.00013698,2]
[400361394,1767437438609,-1730.18390779,0.00013698,2]
[400361395,1767437438634,-500.0,0.00013698,2]
[400361396,1767437438654,-500.0,0.00013698,2]
[400361397,1767437438675,-500.0,0.00013698,2]
[400361398,1767437438696,-500.0,0.00013698,2]
[400361399,1767437438718,-500.0,0.00013698,2]
[400361400,1767437438737,-500.0,0.00013698,2]
[400361401,1767437438756,-500.0,0.00013698,2]
[400361402,1767437438776,-500.0,0.00013698,2]
[400361403,1767437438794,-500.0,0.00013698,2]
[400361404,1767437438811,-500.0,0.00013698,2]
[400361405,1767437438829,-500.0,0.00013698,2]
[400361406,1767437438848,-500.0,0.00013698,2]
[400361407,1767437438870,-500.0,0.00013698,2]
[400361408,1767437438890,-500.0,0.00013698,2]
[400361409,1767437438903,-1167.579961,0.00013699,2]
[400361410,1767437438922,-500.0,0.00013699,2]
[400361411,1767437438939,-500.0,0.00013699,2]
[400361412,1767437438955,-500.0,0.00013699,2]
[400361413,1767437438972,-501.0990515,0.00013699,2]
[400361414,1767437438987,-173.31490018,0.00013821,2]
[400361415,1767437439003,-582.21198243,0.00013821,2]
[400361416,1767437439021,-1000.0,0.00013821,2]
[400361417,1767437439037,-1041.66666667,0.00013889,2]
[400361418,1767437439053,-427.34,0.000139,2]
[400361419,1767437439070,-492.2,0.00014034,2]
[400361420,1767437439086,-250.0,0.00014109,2]
[400361421,1767437439102,-1000.0,0.00014247,2]
[400361422,1767437439119,-500.0,0.00014247,2]
[400361423,1767437439135,-1000.0,0.00014247,2]
[400361424,1767437439152,-250.0,0.000143,2]
[400361425,1767437439168,-427.34,0.000143,2]
[400361426,1767437439185,-269.09233947,0.00014368,2]
[400361427,1767437439202,-720.0,0.00014448,2]
[400361428,1767437439219,-427.34,0.000146,2]
[400361429,1767437439236,-345.49,0.00014784,2]
[400361430,1767437439252,-274.14,0.00014784,2]
[400361431,1767437439270,-274.14,0.00014784,2]
[400361432,1767437439287,-274.14,0.00014784,2]
[400361433,1767437439303,-274.14,0.00014784,2]
[400361434,1767437439319,-274.14,0.00014784,2]
[400361435,1767437439337,-274.14,0.00014784,2]
[400361436,1767437439354,-274.14,0.00014784,2]
[400361437,1767437439370,-1500.0,0.00014795,2]
[400361438,1767437439386,-345.49218009,0.00014814,2]
[400361440,1767437439401,-100000.0,0.00014882,2]
[400361441,1767437439418,-427.34,0.000149,2]
[400361442,1767437439434,-1000.0,0.00015,2]
[400361443,1767437439450,-800.0,0.00015068,2]
[400361444,1767437439466,-427.34,0.000153,2]
[400361445,1767437439485,-2000.0,0.00015342,2]
[400361446,1767437439503,-427.34,0.000156,2]
[400361447,1767437439515,-1080.92186024,0.00015757,2]
[400361448,1767437439526,-2500.0,0.0001589,2]
[400361449,1767437439536,-864.0,0.00015893,2]
[400361450,1767437439549,-427.34,0.000159,2]
[400361451,1767437439559,-163.3,0.00016161,2]
[400361452,1767437439570,-1093.84384208,0.00016164,2]
[400361463,1767437439753,-427.34,0.000163,2]
[400361466,1767437439777,-16891.83577309,0.00016338,2]
[400361468,1767437439789,-972.294013,0.00016438,2]
[400361470,1767437439799,-972.294013,0.00016438,2]
[400361472,1767437439809,-972.294013,0.00016438,2]
[400361473,1767437439818,-972.294013,0.00016438,2]
[400361475,1767437439828,-151.0,0.00016438,2]
[400361477,1767437439838,-864.7,0.00016438,2]
[400361479,1767437439847,-151.0,0.00016438,2]
[400361481,1767437439857,-7393.07106604,0.00016438,2]
[400361483,1767437439867,-7393.07106604,0.00016438,2]
[400361485,1767437439877,-7393.07106604,0.00016438,2]
[400361487,1767437439887,-7393.07106604,0.00016438,2]
[400361489,1767437439896,-7393.07106604,0.00016438,2]
[400361491,1767437439906,-7393.07106604,0.00016438,2]
[400361493,1767437439915,-7393.07106604,0.00016438,2]
[400361494,1767437439924,-7393.07106604,0.00016438,2]
[400361496,1767437439934,-7393.07106604,0.00016438,2]
[400361498,1767437439944,-7393.07106604,0.00016438,2]
[400361500,1767437439954,-7393.07106604,0.00016438,2]
[400361502,1767437439963,-7393.07106604,0.00016438,2]
[400361504,1767437439974,-7393.07106604,0.00016438,2]
[400361506,1767437439984,-7393.07106604,0.00016438,2]
[400361508,1767437439993,-7393.07106604,0.00016438,2]
[400361510,1767437440003,-7393.07106604,0.00016438,2]
[400361512,1767437440012,-7393.07106604,0.00016438,2]
[400361514,1767437440022,-7393.07106604,0.00016438,2]
[400361516,1767437440032,-7393.07106604,0.00016438,2]
[400361518,1767437440041,-7393.07106604,0.00016438,2]
[400361520,1767437440051,-7393.07106604,0.00016438,2]
[400361522,1767437440061,-7393.07106604,0.00016438,2]
[400361524,1767437440070,-7393.07106604,0.00016438,2]
[400361526,1767437440080,-7393.07106604,0.00016438,2]
[400361528,1767437440090,-7393.07106604,0.00016438,2]
[400361530,1767437440099,-7393.07106604,0.00016438,2]
[400361532,1767437440109,-7393.07106604,0.00016438,2]
[400361534,1767437440120,-7393.07106604,0.00016438,2]
[400361536,1767437440129,-7393.07106604,0.00016438,2]
[400361538,1767437440139,-7393.07106604,0.00016438,2]
[400361540,1767437440148,-7393.07106604,0.00016438,2]
[400361542,1767437440158,-7393.07106604,0.00016438,2]
[400361544,1767437440168,-7393.07106604,0.00016438,2]
[400361546,1767437440178,-7393.07106604,0.00016438,2]
[400361547,1767437440188,-7393.07106604,0.00016438,2]
[400361549,1767437440197,-7393.07106604,0.00016438,2]
[400361551,1767437440207,-7393.07106604,0.00016438,2]
[400361553,1767437440216,-7393.07106604,0.00016438,2]
[400361555,1767437440225,-459.45932249,0.00016438,2]
[400361558,1767437440249,-925.41947073,0.00016438,2]
[400361564,1767437440551,-4958.17270198,0.00016438,2]
[400361639,1767437472741,150.55,0.00012421,2]
[400361640,1767437477887,352.52,0.000126,2]
[400361642,1767437541463,331.83,0.000126,2]
[400361643,1767437542404,157.9,0.00012498,2]
[400361644,1767437562763,-688.44590162,0.00012677,2]
[400361645,1767437566196,-192.73300448,0.00012677,2]
[400361646,1767437568292,-300.0,0.00012677,2]
[400361647,1767437571664,-235.52615159,0.00012677,2]
[400361648,1767437573347,-200.18696963,0.00012677,2]
[400361649,1767437574925,-243.25603843,0.00012677,2]
[400361650,1767437578185,-247.48270903,0.00012677,2]
[400361651,1767437580808,-211.95799355,0.00012677,2]
[400361652,1767437584001,-269.06678174,0.00012676,2]
[400361653,1767437584274,644.94098636,0.00012628,2]
[400361654,1767437587176,-30.93321826,0.00012676,2]
[400361655,1767437587202,-171.68245211,0.00012677,2]
[400361656,1767437591096,-216.57968593,0.00012677,2]
[400361657,1767437593783,-189.20691633,0.00012677,2]
[400361658,1767437595933,-214.79345135,0.00012676,2]
[400361659,1767437598606,-434.40980476,0.00012676,2]
[400361660,1767437600084,-497.20149175,0.00012676,2]
[400361661,1767437601685,-53.59525214,0.00012676,2]
[400361662,1767437601841,-414.82514163,0.00012677,2]
[400361663,1767437602546,446.12,0.000126,2]
[400361664,1767437603494,-167.53566674,0.00012677,2]
[400361665,1767437604931,-207.50920026,0.00012677,2]
[400361666,1767437607657,-165.10683184,0.00012677,2]
[400361667,1767437609229,-392.21895495,0.00012677,2]
[400361668,1767437612448,188.48,0.00011491,2]
[400361669,1767437612537,-312.4775665,0.00012677,2]
[400361670,1767437612923,235.6,0.0001197,2]
[400361671,1767437613400,282.72,0.00012449,2]
[400361672,1767437614602,-317.21041581,0.00012677,2]
[400361673,1767437617996,-318.7404693,0.00012677,2]
[400361674,1767437621135,-249.5425675,0.00012677,2]
[400361675,1767437624507,-247.59411421,0.00012677,2]
[400361676,1767437629701,-250.4574325,0.00012677,2]
[400361677,1767437631907,-296.56478859,0.00012677,2]
[400361678,1767437636708,-164.62526406,0.00012677,2]
[400361679,1767437639137,5000.0,0.00012628,2]
[400361680,1767437640294,-255.36630475,0.00012677,2]
[400361681,1767437644306,-228.50864424,0.00012677,2]
[400361682,1767437646683,-189.25028351,0.00012677,2]
[400361683,1767437648290,-410.74971649,0.00012677,2]
[400361684,1767437653620,-224.24945607,0.00012677,2]
[400361685,1767437655777,-174.46640061,0.00012677,2]
[400361686,1767437657489,-228.08421644,0.00012677,2]
[400361687,1767437661672,334.12,0.000126,2]
[400361688,1767437661761,-174.46640061,0.00012677,2]
[400361689,1767437663918,-160.14540061,0.00012677,2]
[400361690,1767437663965,1875.22901364,0.00012628,2]
[400361691,1767437663994,3124.77098636,0.00012628,2]
[400361692,1767437685019,168.63,0.0001138,2]
[400361693,1767437685407,210.78,0.00011854,2]
[400361694,1767437685875,252.94,0.00012328,2]
[400361695,1767437688338,5000.0,0.00012628,2]
[400361696,1767437712386,1242.88901364,0.00012628,2]
[400361697,1767437712413,3757.11098636,0.00012628,2]
[400361698,1767437721814,443.88,0.000126,2]
[400361699,1767437736328,5000.0,0.00012628,2]
[400361700,1767437742790,-300.0,0.00012675,2]
[400361701,1767437742812,-300.0,0.00012675,2]
[400361702,1767437742834,-56.09804503,0.00012675,2]
[400361703,1767437758030,170.08,0.00011383,2]
[400361704,1767437758524,212.6,0.00011858,2]
[400361705,1767437759000,255.12,0.00012332,2]
[400361706,1767437761002,161.21901364,0.00012628,2]
[400361707,1767437761025,4838.78098636,0.00012628,2]
[400361708,1767437768795,1334.97,0.00012329,2]
[400361709,1767437779225,1112.48,0.00012329,2]
[400361710,1767437782105,349.16,0.000126,2]
[400361711,1767437784878,2364.61901364,0.00012628,2]
[400361712,1767437784903,234.17616238,0.00012628,2]
[400361713,1767437789618,927.07,0.00012329,2]
[400361714,1767437800033,772.55,0.00012329,2]
[400361715,1767437810409,643.8,0.00012329,2]
[400361716,1767437821015,536.5,0.00012329,2]
[400361717,1767437831119,169.31,0.00011036,2]
[400361718,1767437831601,447.08,0.00012329,2]
[400361719,1767437831638,211.63,0.00011496,2]
[400361720,1767437832228,253.96,0.00011955,2]
[400361721,1767437832564,296.28,0.00012415,2]
[400361722,1767437841986,372.57,0.00012329,2]
[400361723,1767437842775,441.98,0.000126,2]
[400361724,1767437848259,-300.0,0.00012674,2]
[400361725,1767437848280,-117.78801757,0.00012674,2]
[400361726,1767437849964,-182.21198243,0.00012674,2]
[400361727,1767437849990,-23.14071661,0.00012675,2]
[400361728,1767437852290,310.47,0.00012329,2]
[400361729,1767437862727,258.73,0.00012329,2]
[400361730,1767437873132,215.6,0.00012329,2]
[400361731,1767437877806,-169.10578049,0.00012675,2]
[400361732,1767437883558,179.67,0.00012329,2]
[400361733,1767437894173,898.38,0.00012329,2]
[400361734,1767437903993,181.01,0.00011526,2]
[400361735,1767437904475,217.21,0.00011987,2]
[400361736,1767437905023,253.42,0.00012448,2]
[400361737,1767437905519,363.48,0.000126,2]
[400361738,1767437905955,-206.29728108,0.00012674,2]
[400361740,1767437910997,-93.70271892,0.00012674,2]
[400361741,1767437911024,-74.8830645,0.00012675,2]
[400361742,1767437913953,-242.6933364,0.00012674,2]
[400361743,1767437915628,-240.12784886,0.00012674,2]
[400361744,1767437962670,444.09,0.000126,2]
[400361745,1767437968304,-300.0,0.00012673,2]
[400361746,1767437969779,-17.17881474,0.00012674,2]
[400361747,1767437969803,-263.91914648,0.00012674,2]
[400361748,1767437972184,-23.841653,0.00012674,2]
[400361749,1767437972209,-230.26790519,0.00012674,2]
[400361750,1767437976950,177.72,0.00011481,2]
[400361751,1767437977335,213.27,0.0001194,2]
[400361752,1767437977601,-269.73209481,0.00012674,2]
[400361753,1767437977767,-167.27968079,0.00012674,2]
[400361754,1767437977821,248.81,0.000124,2]
[400361755,1767438016034,1527.0986922,0.00011815,2]
[400361756,1767438021224,388.43,0.000126,2]
[400361757,1767438027764,-241.0,0.00012673,2]
[400361758,1767438027788,-98.13203878,0.00012673,2]
[400361759,1767438048532,175.19,0.00011508,2]
[400361760,1767438049001,210.23,0.00011968,2]
[400361761,1767438049474,245.27,0.00012428,2]
[400361762,1767438082385,449.76,0.000126,2]
[400361763,1767438102830,-410.13248632,0.00012673,2]
[400361764,1767438103483,157.823,0.00012423,2]
[400361765,1767438103512,183.62270644,0.00012423,2]
[400361766,1767438120291,163.69,0.0001151,2]
[400361767,1767438120767,196.43,0.0001197,2]
[400361768,1767438121268,229.17,0.00012431,2]
[400361769,1767438142320,397.86,0.000126,2]
[400361770,1767438192505,151.43,0.00011982,2]
[400361771,1767438192967,176.67,0.00012443,2]
[400361772,1767438202693,448.72,0.000126,2]
[400361773,1767438207753,-215.19363262,0.00012672,2]
[400361774,1767438209894,-205.74623607,0.00012672,2]
[400361775,1767438263222,407.3,0.000126,2]
[400361776,1767438325545,447.89,0.000126,2]